[Event "Early-Titled-Tuesday-Blitz-April-23-2024"]
[Site "Chess.com"]
[Date "2024.04.23"]
[Round "9"]
[White "AlexTruskavetsky"]
[Black "FGHSMN"]
[Result "0-1"]
[WhiteElo "2687"]
[BlackElo "2907"]
[TimeControl "180+1"]
[EndTime "9:51:16 PDT"]
[Termination "FGHSMN won on time"]

1. e4 {[%clk 0:03:00.9]} 1... e6 {[%clk 0:02:12]} 2. d4 {[%clk 0:02:57.7]} 2...
d5 {[%clk 0:02:12.2]} 3. Nd2 {[%clk 0:02:56.2]} 3... Nf6 {[%clk 0:02:10.6]} 4.
e5 {[%clk 0:02:47.7]} 4... Nfd7 {[%clk 0:02:08.7]} 5. c3 {[%clk 0:02:46.7]} 5...
c5 {[%clk 0:02:09.6]} 6. Ngf3 {[%clk 0:02:46.6]} 6... Nc6 {[%clk 0:02:10.5]} 7.
Bd3 {[%clk 0:02:46.6]} 7... Be7 {[%clk 0:02:08.3]} 8. O-O {[%clk 0:02:45.9]}
8... Qb6 {[%clk 0:02:07.9]} 9. dxc5 {[%clk 0:02:24.4]} 9... Nxc5 {[%clk
0:02:05.5]} 10. Bc2 {[%clk 0:02:22.8]} 10... Qc7 {[%clk 0:01:56.3]} 11. Nb3
{[%clk 0:02:18.5]} 11... Nxe5 {[%clk 0:01:42.9]} 12. Nxc5 {[%clk 0:02:13.6]}
12... Nxf3+ {[%clk 0:01:39]} 13. Qxf3 {[%clk 0:02:13.3]} 13... Bxc5 {[%clk
0:01:39.7]} 14. Bf4 {[%clk 0:02:11.2]} 14... Bd6 {[%clk 0:01:39.6]} 15. Bxd6
{[%clk 0:02:06.8]} 15... Qxd6 {[%clk 0:01:39.6]} 16. Rad1 {[%clk 0:02:06]} 16...
b5 {[%clk 0:01:30.5]} 17. Rfe1 {[%clk 0:02:05]} 17... O-O {[%clk 0:01:28.3]} 18.
Qd3 {[%clk 0:02:03.8]} 18... g6 {[%clk 0:01:28.3]} 19. Qxb5 {[%clk 0:02:03.6]}
19... Rb8 {[%clk 0:01:28.4]} 20. Qa5 {[%clk 0:02:00.8]} 20... Rxb2 {[%clk
0:01:26]} 21. Rc1 {[%clk 0:01:45]} 21... Qb6 {[%clk 0:01:17]} 22. Qa3 {[%clk
0:01:44.7]} 22... Bd7 {[%clk 0:01:13.7]} 23. Rb1 {[%clk 0:01:43.5]} 23... Rb8
{[%clk 0:01:12.8]} 24. h4 {[%clk 0:01:42.8]} 24... Rxb1 {[%clk 0:01:04]} 25.
Rxb1 {[%clk 0:01:42]} 25... Qc7 {[%clk 0:01:04.5]} 26. Rxb8+ {[%clk 0:01:39.4]}
26... Qxb8 {[%clk 0:01:05.4]} 27. Qe7 {[%clk 0:01:37.9]} 27... Qe8 {[%clk
0:00:58.7]} 28. Qf6 {[%clk 0:01:37.5]} 28... h5 {[%clk 0:00:54.5]} 29. f3 {[%clk
0:01:32.3]} 29... e5 {[%clk 0:00:47]} 30. g4 {[%clk 0:01:29.5]} 30... hxg4
{[%clk 0:00:46]} 31. h5 {[%clk 0:01:28.9]} 31... gxh5 {[%clk 0:00:41.8]} 32. Qh6
{[%clk 0:01:27.8]} 32... e4 {[%clk 0:00:28.6]} 33. Qg5+ {[%clk 0:01:25.2]} 33...
Kf8 {[%clk 0:00:28.1]} 34. fxe4 {[%clk 0:01:24.3]} 34... dxe4 {[%clk 0:00:28.9]}
35. Qxh5 {[%clk 0:01:23.9]} 35... Qe6 {[%clk 0:00:26.7]} 36. Qc5+ {[%clk
0:01:21.3]} 36... Ke8 {[%clk 0:00:24.9]} 37. Qxa7 {[%clk 0:01:21.4]} 37... f5
{[%clk 0:00:24]} 38. Qb8+ {[%clk 0:01:17.6]} 38... Ke7 {[%clk 0:00:24.4]} 39. a4
{[%clk 0:01:10.1]} 39... Qd6 {[%clk 0:00:21.8]} 40. Qh8 {[%clk 0:01:08]} 40...
Qg3+ {[%clk 0:00:21.3]} 41. Kf1 {[%clk 0:01:08.2]} 41... Qf3+ {[%clk 0:00:20.7]}
42. Ke1 {[%clk 0:01:05.4]} 42... Qe3+ {[%clk 0:00:19.9]} 43. Kd1 {[%clk
0:01:00.4]} 43... Qg1+ {[%clk 0:00:20.2]} 44. Kd2 {[%clk 0:00:56.7]} 44... Qf2+
{[%clk 0:00:17]} 45. Kc1 {[%clk 0:00:56.8]} 45... Qc5 {[%clk 0:00:17.2]} 46.
Qg7+ {[%clk 0:00:54.9]} 46... Kd8 {[%clk 0:00:17.8]} 47. Qg5+ {[%clk 0:00:45.6]}
47... Kc7 {[%clk 0:00:17.3]} 48. Qf4+ {[%clk 0:00:45.8]} 48... Qd6 {[%clk
0:00:17.9]} 49. Qe3 {[%clk 0:00:44.9]} 49... Bc6 {[%clk 0:00:18]} 50. a5 {[%clk
0:00:44.1]} 50... Qa3+ {[%clk 0:00:14.9]} 51. Kd2 {[%clk 0:00:42.2]} 51... Qxa5
{[%clk 0:00:15.8]} 52. Qf4+ {[%clk 0:00:42]} 52... Kb7 {[%clk 0:00:16.2]} 53.
Bb3 {[%clk 0:00:40.7]} 53... Bd7 {[%clk 0:00:14.8]} 54. Qd6 {[%clk 0:00:36.8]}
54... Qc7 {[%clk 0:00:14.8]} 55. Qb4+ {[%clk 0:00:34.2]} 55... Qb6 {[%clk
0:00:13.9]} 56. Qe7 {[%clk 0:00:33.1]} 56... Kc7 {[%clk 0:00:13.8]} 57. Qg5
{[%clk 0:00:27.6]} 57... Qd6+ {[%clk 0:00:14.7]} 58. Kc2 {[%clk 0:00:27.7]}
58... Qh2+ {[%clk 0:00:14.7]} 59. Kb1 {[%clk 0:00:27.3]} 59... Qe5 {[%clk
0:00:13.5]} 60. Qe3 {[%clk 0:00:24.6]} 60... f4 {[%clk 0:00:13.3]} 61. Qa7+
{[%clk 0:00:24.5]} 61... Kd8 {[%clk 0:00:14]} 62. Qa8+ {[%clk 0:00:21.9]} 62...
Ke7 {[%clk 0:00:14.3]} 63. Qa7 {[%clk 0:00:22.8]} 63... e3 {[%clk 0:00:14]} 64.
Ba4 {[%clk 0:00:22.5]} 64... Qe4+ {[%clk 0:00:14.4]} 65. Bc2 {[%clk 0:00:21.8]}
65... Qd5 {[%clk 0:00:12.7]} 66. Qa3+ {[%clk 0:00:16.4]} 66... Qd6 {[%clk
0:00:12.6]} 67. Qa8 {[%clk 0:00:12.6]} 67... e2 {[%clk 0:00:12]} 68. Qh1 {[%clk
0:00:10.1]} 68... Qb6+ {[%clk 0:00:10.7]} 69. Ka1 {[%clk 0:00:09.2]} 69... Qe6
{[%clk 0:00:07.4]} 70. Qe1 {[%clk 0:00:06.4]} 70... g3 {[%clk 0:00:07.4]} 71.
Bd3 {[%clk 0:00:06]} 71... f3 {[%clk 0:00:07.9]} 72. Kb2 {[%clk 0:00:04.9]}
72... f2 {[%clk 0:00:08.3]} 73. Qxe2 {[%clk 0:00:05]} 73... Qxe2+ {[%clk
0:00:08.9]} 74. Bxe2 {[%clk 0:00:05.3]} 74... g2 {[%clk 0:00:09.8]} 0-1

[Event "Early-Titled-Tuesday-Blitz-April-23-2024"]
[Site "Chess.com"]
[Date "2024.04.23"]
[Round "9"]
[White "ozates"]
[Black "Brave_spirit12"]
[Result "0-1"]
[WhiteElo "2560"]
[BlackElo "2728"]
[TimeControl "180+1"]
[EndTime "9:51:18 PDT"]
[Termination "Brave_spirit12 won by resignation"]

1. e4 {[%clk 0:02:53.4]} 1... e6 {[%clk 0:02:59]} 2. d4 {[%clk 0:02:52.4]} 2...
d5 {[%clk 0:02:59.7]} 3. e5 {[%clk 0:02:49.2]} 3... c5 {[%clk 0:02:58.6]} 4. c3
{[%clk 0:02:49.6]} 4... Nc6 {[%clk 0:02:59.1]} 5. Nf3 {[%clk 0:02:49.5]} 5...
Bd7 {[%clk 0:02:57.5]} 6. Be2 {[%clk 0:02:49.3]} 6... f6 {[%clk 0:02:57.6]} 7.
O-O {[%clk 0:02:48.3]} 7... fxe5 {[%clk 0:02:57.5]} 8. Nxe5 {[%clk 0:02:49.2]}
8... Nxe5 {[%clk 0:02:55]} 9. dxe5 {[%clk 0:02:48.6]} 9... Qc7 {[%clk
0:02:55.7]} 10. Bf4 {[%clk 0:02:48]} 10... Nh6 {[%clk 0:02:54.2]} 11. Nd2 {[%clk
0:02:34.5]} 11... Nf7 {[%clk 0:02:53]} 12. Bh5 {[%clk 0:02:20.1]} 12... g6
{[%clk 0:02:52.1]} 13. Bg4 {[%clk 0:02:20.4]} 13... h5 {[%clk 0:02:50.9]} 14.
Bh3 {[%clk 0:02:18.7]} 14... g5 {[%clk 0:02:51]} 15. Bg3 {[%clk 0:01:52.5]}
15... g4 {[%clk 0:02:49]} 16. Bxg4 {[%clk 0:01:52.7]} 16... hxg4 {[%clk
0:02:49.9]} 17. Qxg4 {[%clk 0:01:53.1]} 17... O-O-O {[%clk 0:02:49]} 18. b4
{[%clk 0:01:50.2]} 18... c4 {[%clk 0:02:48.1]} 19. Nf3 {[%clk 0:01:48.9]} 19...
Nh6 {[%clk 0:02:48.4]} 20. Qd4 {[%clk 0:01:45.8]} 20... Kb8 {[%clk 0:02:47.5]}
21. Bf4 {[%clk 0:01:40.3]} 21... Nf5 {[%clk 0:02:47.6]} 22. Qd2 {[%clk
0:01:40.5]} 22... Bh6 {[%clk 0:02:47.6]} 23. Nd4 {[%clk 0:01:38.5]} 23... Bxf4
{[%clk 0:02:46.2]} 24. Qxf4 {[%clk 0:01:38.4]} 24... Nxd4 {[%clk 0:02:46.4]} 25.
Qxd4 {[%clk 0:01:38.3]} 25... Rdg8 {[%clk 0:02:46.3]} 26. f4 {[%clk 0:01:37.5]}
26... Qd8 {[%clk 0:02:45.7]} 27. f5 {[%clk 0:01:37.3]} 27... exf5 {[%clk
0:02:43.5]} 28. e6 {[%clk 0:01:36.1]} 28... Bc6 {[%clk 0:02:32.3]} 29. Qe5+
{[%clk 0:01:32.1]} 29... Qc7 {[%clk 0:02:31.3]} 30. Rae1 {[%clk 0:01:27]} 30...
d4 {[%clk 0:02:28.7]} 31. g3 {[%clk 0:01:22.9]} 31... d3 {[%clk 0:02:18]} 32.
Qxc7+ {[%clk 0:01:17.9]} 32... Kxc7 {[%clk 0:02:17.4]} 33. Rxf5 {[%clk
0:01:18.6]} 33... d2 {[%clk 0:02:15]} 34. Rd1 {[%clk 0:01:03.9]} 34... Rxg3+
{[%clk 0:02:14.9]} 35. hxg3 {[%clk 0:01:03.2]} 35... Rh1+ {[%clk 0:02:15]} 36.
Kf2 {[%clk 0:01:03.9]} 36... Rxd1 {[%clk 0:02:14.6]} 37. Ke2 {[%clk 0:01:04.6]}
37... Re1+ {[%clk 0:02:03.3]} 38. Kxd2 {[%clk 0:01:05]} 38... Rxe6 {[%clk
0:02:04.1]} 39. g4 {[%clk 0:01:05.1]} 39... Rd6+ {[%clk 0:02:00.6]} 40. Kc1
{[%clk 0:01:03.2]} 40... Rd3 {[%clk 0:02:00.7]} 41. Kb2 {[%clk 0:01:03.4]} 41...
Rg3 {[%clk 0:01:59.4]} 42. g5 {[%clk 0:01:03.4]} 42... Rg2+ {[%clk 0:01:59.8]}
43. Ka3 {[%clk 0:00:56.6]} 43... Be4 {[%clk 0:01:59.2]} 44. Rc5+ {[%clk
0:00:55.1]} 44... Kb6 {[%clk 0:01:58.9]} 45. Re5 {[%clk 0:00:36.2]} 45... Bb1
{[%clk 0:01:57.1]} 46. b5 {[%clk 0:00:36.1]} 46... Bxa2 {[%clk 0:01:45.8]} 47.
Kb4 {[%clk 0:00:27.2]} 47... Bb3 {[%clk 0:01:24]} 48. Re6+ {[%clk 0:00:23.5]}
48... Kc7 {[%clk 0:01:23.2]} 49. g6 {[%clk 0:00:12.3]} 49... Bc2 {[%clk
0:01:22.6]} 50. Re7+ {[%clk 0:00:11.7]} 50... Kc8 {[%clk 0:01:20.7]} 51. g7
{[%clk 0:00:11.9]} 51... Bh7 {[%clk 0:01:15]} 52. Kxc4 {[%clk 0:00:12]} 52...
Bg8+ {[%clk 0:01:13.1]} 53. Kd4 {[%clk 0:00:08.1]} 53... Ba2 {[%clk 0:01:03.7]}
54. Ke5 {[%clk 0:00:03.3]} 54... a5 {[%clk 0:01:00.7]} 55. bxa6 {[%clk
0:00:03.2]} 55... bxa6 {[%clk 0:01:01.6]} 56. Ra7 {[%clk 0:00:03.1]} 56... Bc4
{[%clk 0:01:01.6]} 57. Kd6 {[%clk 0:00:02.5]} 57... Kb8 {[%clk 0:01:01.3]} 58.
Re7 {[%clk 0:00:02]} 58... a5 {[%clk 0:01:00.2]} 59. Kc5 {[%clk 0:00:02.3]}
59... Bb3 {[%clk 0:00:54.1]} 60. Kb6 {[%clk 0:00:02.8]} 60... Kc8 {[%clk
0:00:44.9]} 61. Kxa5 {[%clk 0:00:03.1]} 61... Kd8 {[%clk 0:00:45.3]} 62. Ra7
{[%clk 0:00:03.6]} 62... Ke8 {[%clk 0:00:43.7]} 63. Kb4 {[%clk 0:00:04.1]} 63...
Bf7 {[%clk 0:00:43]} 64. Kc5 {[%clk 0:00:03.9]} 64... Rxg7 {[%clk 0:00:41.1]}
65. Ra8+ {[%clk 0:00:03.7]} 65... Ke7 {[%clk 0:00:40.9]} 66. Ra7+ {[%clk
0:00:04.5]} 66... Kf6 {[%clk 0:00:41.3]} 67. Ra6+ {[%clk 0:00:04.9]} 67... Be6
{[%clk 0:00:41.9]} 68. Rd6 {[%clk 0:00:04.7]} 68... Ke5 {[%clk 0:00:41.2]} 69.
Rd8 {[%clk 0:00:04.6]} 69... Rc7+ {[%clk 0:00:41.5]} 70. Kb4 {[%clk 0:00:04.7]}
70... Rc4+ {[%clk 0:00:42.2]} 71. Kb5 {[%clk 0:00:05.1]} 71... Rxc3 {[%clk
0:00:42.9]} 72. Rh8 {[%clk 0:00:05.6]} 72... Kd6 {[%clk 0:00:40.9]} 73. Rd8+
{[%clk 0:00:05.2]} 73... Bd7+ {[%clk 0:00:40.7]} 74. Kb4 {[%clk 0:00:04.9]}
74... Rc7 {[%clk 0:00:41.2]} 75. Rh8 {[%clk 0:00:05]} 75... Be6 {[%clk
0:00:39.9]} 76. Rd8+ {[%clk 0:00:04.8]} 76... Ke5 {[%clk 0:00:40.5]} 77. Rd1
{[%clk 0:00:04.6]} 77... Bd5 {[%clk 0:00:40.4]} 78. Kb5 {[%clk 0:00:05.2]} 78...
Kd6 {[%clk 0:00:39]} 79. Rd2 {[%clk 0:00:05.3]} 79... Rb7+ {[%clk 0:00:38.9]}
80. Ka6 {[%clk 0:00:05.3]} 80... Rb3 {[%clk 0:00:38]} 81. Rd1 {[%clk 0:00:04.9]}
81... Kc5 {[%clk 0:00:33.6]} 82. Rc1+ {[%clk 0:00:03.7]} 82... Bc4+ {[%clk
0:00:34.1]} 83. Ka7 {[%clk 0:00:03.7]} 83... Kd5 {[%clk 0:00:28.2]} 84. Ka8
{[%clk 0:00:01.9]} 84... Bd3 {[%clk 0:00:27.2]} 85. Ka7 {[%clk 0:00:02.3]} 85...
Kd6 {[%clk 0:00:27.5]} 86. Ka8 {[%clk 0:00:02.8]} 86... Be4+ {[%clk 0:00:27.4]}
87. Ka7 {[%clk 0:00:03.1]} 87... Bc6 {[%clk 0:00:27.5]} 88. Ka6 {[%clk
0:00:02.8]} 88... Kc7 {[%clk 0:00:27.5]} 89. Ka5 {[%clk 0:00:03.5]} 89... Rb5+
{[%clk 0:00:27]} 90. Ka6 {[%clk 0:00:03.4]} 90... Rb4 {[%clk 0:00:26.4]} 91. Ra1
{[%clk 0:00:03.4]} 91... Rb8 {[%clk 0:00:27]} 0-1

[Event "Early-Titled-Tuesday-Blitz-April-23-2024"]
[Site "Chess.com"]
[Date "2024.04.23"]
[Round "9"]
[White "amylazy"]
[Black "Zavgorodniy_Sergiy"]
[Result "1/2-1/2"]
[WhiteElo "2465"]
[BlackElo "2586"]
[TimeControl "180+1"]
[EndTime "9:51:31 PDT"]
[Termination "Game drawn - insufficient material"]

1. d4 {[%clk 0:03:00.9]} 1... Nf6 {[%clk 0:02:58.5]} 2. Nf3 {[%clk 0:03:01]}
2... e6 {[%clk 0:02:57.9]} 3. e3 {[%clk 0:03:00.5]} 3... g6 {[%clk 0:02:55.5]}
4. Bd3 {[%clk 0:03:00.2]} 4... Bg7 {[%clk 0:02:56.1]} 5. O-O {[%clk 0:03:00.8]}
5... O-O {[%clk 0:02:56.7]} 6. c4 {[%clk 0:03:01.5]} 6... d6 {[%clk 0:02:57]} 7.
Nc3 {[%clk 0:03:02]} 7... Qe7 {[%clk 0:02:57.5]} 8. b3 {[%clk 0:03:02.7]} 8...
e5 {[%clk 0:02:55.5]} 9. dxe5 {[%clk 0:03:01.7]} 9... dxe5 {[%clk 0:02:55.3]}
10. e4 {[%clk 0:03:02.3]} 10... c6 {[%clk 0:02:54.1]} 11. Bb2 {[%clk 0:02:59.5]}
11... Nbd7 {[%clk 0:02:47.4]} 12. Bc2 {[%clk 0:02:55.7]} 12... Rd8 {[%clk
0:02:42.3]} 13. Qe2 {[%clk 0:02:55.4]} 13... Nf8 {[%clk 0:02:42.4]} 14. h3
{[%clk 0:02:54.4]} 14... Ne6 {[%clk 0:02:40.3]} 15. Rfd1 {[%clk 0:02:43.6]}
15... Re8 {[%clk 0:02:20.7]} 16. Qe3 {[%clk 0:02:35.9]} 16... Nf4 {[%clk
0:02:16]} 17. Ne2 {[%clk 0:02:33]} 17... Nxe2+ {[%clk 0:02:15.5]} 18. Qxe2
{[%clk 0:02:32.6]} 18... Nh5 {[%clk 0:02:16.1]} 19. Bc1 {[%clk 0:01:56.8]} 19...
Nf4 {[%clk 0:02:13.1]} 20. Bxf4 {[%clk 0:01:56.1]} 20... exf4 {[%clk 0:02:12.5]}
21. e5 {[%clk 0:01:50.4]} 21... a5 {[%clk 0:01:49.8]} 22. Rac1 {[%clk
0:01:48.3]} 22... a4 {[%clk 0:01:48.5]} 23. Qd2 {[%clk 0:01:28]} 23... axb3
{[%clk 0:01:46.6]} 24. axb3 {[%clk 0:01:26.5]} 24... g5 {[%clk 0:01:23.9]} 25.
Qd3 {[%clk 0:01:22.9]} 25... h6 {[%clk 0:01:23.8]} 26. Nd4 {[%clk 0:00:36.1]}
26... Qxe5 {[%clk 0:01:16.2]} 27. Nf3 {[%clk 0:00:30.8]} 27... Qf6 {[%clk
0:01:14.4]} 28. Qh7+ {[%clk 0:00:29.8]} 28... Kf8 {[%clk 0:01:13.8]} 29. Re1
{[%clk 0:00:22.9]} 29... Rxe1+ {[%clk 0:01:08.6]} 30. Rxe1 {[%clk 0:00:22.3]}
30... Ra1 {[%clk 0:01:09.1]} 31. Qe4 {[%clk 0:00:17.6]} 31... Rxe1+ {[%clk
0:01:07.2]} 32. Nxe1 {[%clk 0:00:18.5]} 32... Qe5 {[%clk 0:01:05.8]} 33. Nf3
{[%clk 0:00:15.5]} 33... Qxe4 {[%clk 0:01:04.1]} 34. Bxe4 {[%clk 0:00:16.4]}
34... Ke7 {[%clk 0:01:02.6]} 35. Kf1 {[%clk 0:00:16]} 35... Bc3 {[%clk
0:00:57.6]} 36. Ke2 {[%clk 0:00:15.7]} 36... f5 {[%clk 0:00:56.4]} 37. Bc2
{[%clk 0:00:15.5]} 37... Kd6 {[%clk 0:00:54.9]} 38. Kd3 {[%clk 0:00:15.6]} 38...
Bb4 {[%clk 0:00:55.4]} 39. Nd4 {[%clk 0:00:15.3]} 39... Bc5 {[%clk 0:00:55.8]}
40. f3 {[%clk 0:00:11.4]} 40... Bxd4 {[%clk 0:00:54.3]} 41. Kxd4 {[%clk
0:00:12.3]} 41... c5+ {[%clk 0:00:54.7]} 42. Kc3 {[%clk 0:00:11.9]} 42... Ke5
{[%clk 0:00:55.3]} 43. b4 {[%clk 0:00:12.2]} 43... b6 {[%clk 0:00:55.2]} 44.
bxc5 {[%clk 0:00:11.9]} 44... bxc5 {[%clk 0:00:56.1]} 45. Kd3 {[%clk 0:00:12.1]}
45... h5 {[%clk 0:00:56.2]} 46. Bd1 {[%clk 0:00:11.7]} 46... g4 {[%clk 0:00:56]}
47. h4 {[%clk 0:00:12.1]} 47... Bb7 {[%clk 0:00:55.4]} 48. Be2 {[%clk
0:00:11.8]} 48... Bc6 {[%clk 0:00:55.1]} 49. Bd1 {[%clk 0:00:12]} 49... Kd6
{[%clk 0:00:54.2]} 50. Be2 {[%clk 0:00:12]} 50... Kc7 {[%clk 0:00:54.4]} 51. Kc3
{[%clk 0:00:12.5]} 51... Kb6 {[%clk 0:00:54.8]} 52. Bd1 {[%clk 0:00:12.4]} 52...
Ka5 {[%clk 0:00:54.8]} 53. Be2 {[%clk 0:00:12.8]} 53... Ka4 {[%clk 0:00:54.2]}
54. Bd1+ {[%clk 0:00:13.3]} 54... Ka3 {[%clk 0:00:54.3]} 55. Be2 {[%clk
0:00:11.3]} 55... Ka2 {[%clk 0:00:54.4]} 56. Kc2 {[%clk 0:00:11.6]} 56... Ka1
{[%clk 0:00:54.7]} 57. Kc1 {[%clk 0:00:11.9]} 57... Ba8 {[%clk 0:00:46.9]} 58.
Bd1 {[%clk 0:00:11.6]} 58... Bb7 {[%clk 0:00:46]} 59. Be2 {[%clk 0:00:10.9]}
59... Bc8 {[%clk 0:00:46.5]} 60. Bd3 {[%clk 0:00:10.1]} 60... Be6 {[%clk
0:00:46.2]} 61. Kc2 {[%clk 0:00:09.8]} 61... Ka2 {[%clk 0:00:44.2]} 62. Kc3
{[%clk 0:00:10.2]} 62... Bd7 {[%clk 0:00:43.6]} 63. Bc2 {[%clk 0:00:09.6]} 63...
Bc6 {[%clk 0:00:41.5]} 64. Bxf5 {[%clk 0:00:06.8]} 64... gxf3 {[%clk 0:00:27.2]}
65. gxf3 {[%clk 0:00:07.7]} 65... Bxf3 {[%clk 0:00:27.4]} 66. Bg6 {[%clk
0:00:07.8]} 66... Bg4 {[%clk 0:00:26.6]} 67. Kd2 {[%clk 0:00:06]} 67... Kb3
{[%clk 0:00:25.7]} 68. Bf7 {[%clk 0:00:05.2]} 68... f3 {[%clk 0:00:19.7]} 69.
Ke3 {[%clk 0:00:05.4]} 69... Kc3 {[%clk 0:00:20.1]} 70. Bd5 {[%clk 0:00:04.6]}
70... Kc2 {[%clk 0:00:20.4]} 71. Kf2 {[%clk 0:00:02.3]} 71... Kd3 {[%clk
0:00:19.9]} 72. Bf7 {[%clk 0:00:01.5]} 72... Ke4 {[%clk 0:00:17.3]} 73. Bd5+
{[%clk 0:00:02]} 73... Kf4 {[%clk 0:00:17.1]} 74. Bf7 {[%clk 0:00:02.9]} 74...
Ke5 {[%clk 0:00:13.3]} 75. Bd5 {[%clk 0:00:02.8]} 75... Kd4 {[%clk 0:00:11.6]}
76. Bf7 {[%clk 0:00:02.7]} 76... Kc3 {[%clk 0:00:11.1]} 77. Bd5 {[%clk
0:00:02.7]} 77... Bf5 {[%clk 0:00:11.3]} 78. Bf7 {[%clk 0:00:03.6]} 78... Be4
{[%clk 0:00:07.8]} 79. Bxh5 {[%clk 0:00:03.3]} 79... Kxc4 {[%clk 0:00:08.1]} 80.
Bxf3 {[%clk 0:00:04.2]} 80... Bxf3 {[%clk 0:00:07.8]} 81. Kxf3 {[%clk
0:00:05.1]} 81... Kd3 {[%clk 0:00:08.2]} 82. h5 {[%clk 0:00:05.3]} 82... c4
{[%clk 0:00:08.8]} 83. h6 {[%clk 0:00:05.7]} 83... c3 {[%clk 0:00:09.7]} 84. h7
{[%clk 0:00:06.6]} 84... c2 {[%clk 0:00:10.5]} 85. h8=Q {[%clk 0:00:07.5]} 85...
c1=Q {[%clk 0:00:11.4]} 86. Qd8+ {[%clk 0:00:07.4]} 86... Kc2 {[%clk 0:00:10.3]}
87. Qc7+ {[%clk 0:00:06.8]} 87... Kb1 {[%clk 0:00:10.6]} 88. Qxc1+ {[%clk
0:00:07.5]} 88... Kxc1 {[%clk 0:00:11.5]} 1/2-1/2